bitfinex/quotes_ETHUSD_20241119
["timestamp","ask_amount","ask_price","bid_price","bid_amount"]
[1732027824601,3.97108,3108.6,3107.4,0.1417608]
[1732027824602,3.21747,3108.1,3107.4,0.1417608]
[1732027824801,3.21751,3108.0,3107.4,0.47776888]
[1732027825153,3.21747,3108.1,3107.4,0.47776888]
[1732027825353,3.21799,3107.6,3107.4,0.1417608]
[1732027825554,3.21802,3107.5,3107.4,0.1417608]
[1732027826247,3.21781,3107.7,3107.4,0.1417608]
[1732027826416,3.21783,3107.7,3107.4,0.1417608]
[1732027826802,0.8282,3108.3,3107.4,0.1417608]
[1732027827008,3.21802,3107.5,3107.4,0.1417608]
[1732027829552,10.02620688,3107.5,3107.4,0.1417608]
[1732027829864,4.00674,3106.9,3106.8,0.63675431]
[1732027830153,3.21926,3106.3,3105.6,3.21989]
[1732027830446,3.21927,3106.3,3105.7,0.321989]
[1732027830656,3.21914,3106.5,3105.7,0.321989]
[1732027830657,3.21913,3106.5,3105.7,0.321989]
[1732027830864,3.21917,3106.4,3105.8,3.21978]
[1732027831009,4.0068,3106.9,3105.9,3.21967]
[1732027831205,3.21851,3107.1,3106.3,3.21917]
[1732027831518,3.21851,3107.1,3106.5,3.21905]
[1732027831721,0.7946,3107.3,3106.1,0.8157]
[1732027831947,3.21841,3107.2,3106.5,3.21904]
[1732027832150,0.7972,3107.6,3106.2,0.403522]
[1732027832445,3.21861,3107.0,3106.5,0.55]
[1732027832617,3.21868,3106.9,3106.5,0.55]
[1732027832821,0.7972,3107.6,3106.2,0.55]
[1732027832822,3.21822,3107.3,3106.2,0.55]
[1732027833047,3.21865,3106.9,3106.2,0.403503]
[1732027833330,3.21895,3106.6,3106.1,0.8157]
[1732027833518,3.21895,3106.6,3105.8,3.0]
[1732027833519,3.21906,3106.5,3105.8,3.0]
[1732027833741,0.8226,3106.8,3105.8,1.651985]
[1732027834044,3.21906,3106.5,3105.8,3.99975]
[1732027834245,0.8226,3106.8,3105.8,3.99975]
[1732027834246,4.04141,3106.8,3106.2,0.55]
[1732027834545,3.0,3107.2,3105.8,0.78]
[1732027834546,3.7761,3107.2,3105.8,0.78]
[1732027834763,3.7761,3107.2,3106.4,3.21913]
[1732027834932,3.21854,3107.0,3106.4,3.21913]
[1732027835118,3.21861,3107.0,3106.3,3.21918]
[1732027835319,3.21861,3107.0,3106.2,3.21935]
[1732027835621,3.21861,3107.0,3106.3,0.55]
[1732027835824,3.21863,3107.0,3106.3,3.76925]
[1732027836001,0.7761,3107.2,3106.5,1.3291]
[1732027836002,3.21846,3107.1,3106.5,1.3291]
[1732027836207,0.7761,3107.2,3106.5,4.54806]
[1732027836403,3.21795,3107.6,3106.7,0.55]
[1732027836632,3.21795,3107.6,3107.0,3.21843]
[1732027836814,0.7761,3107.7,3106.9,3.21857]
[1732027837028,3.21798,3107.6,3106.9,3.21857]
[1732027837219,3.21798,3107.6,3107.0,0.55]
[1732027837457,0.7761,3107.7,3106.7,3.21883]
[1732027837608,3.21791,3107.6,3106.5,3.99807]
[1732027837810,3.21853,3107.1,3106.4,0.55]
[1732027838010,3.21853,3107.1,3106.2,3.99846]
[1732027838011,3.21872,3106.9,3106.2,3.99846]
[1732027838221,3.21846,3107.1,3106.3,3.21925]
[1732027838446,3.21846,3107.1,3106.4,3.21913]
[1732027838648,3.21833,3107.2,3106.5,3.21898]
[1732027838860,3.21824,3107.3,3106.6,3.2189]
[1732027839022,3.21824,3107.3,3106.5,3.21898]
[1732027839023,3.21845,3107.1,3106.5,3.21898]
[1732027839431,3.21845,3107.1,3106.6,3.21894]
[1732027839755,3.21853,3107.1,3106.6,0.643792]
[1732027839914,3.2185,3107.1,3106.4,3.76909]
[1732027840111,3.21843,3107.1,3106.2,0.7791]
[1732027840312,3.21917,3106.4,3106.1,0.0590676]
[1732027840936,3.18937,3106.4,3106.1,0.0590676]
[1732027841155,4.02437,3106.6,3106.1,0.0590676]
[1732027841334,0.8054,3106.6,3106.1,0.0590676]
[1732027841541,3.21923,3106.4,3106.1,0.0590676]
[1732027841749,3.21936,3106.2,3106.1,0.0590676]
[1732027842238,7.629631,3106.2,3106.1,0.0590676]
[1732027842422,7.629631,3106.2,3104.6,3.22095]
[1732027842423,3.22036,3105.3,3104.6,3.22095]
[1732027842920,0.322036,3105.3,3104.6,3.22095]
[1732027843119,0.01,3106.0,3104.6,3.22095]
[1732027843120,3.22048,3105.2,3104.6,3.22095]
[1732027843316,3.22048,3105.2,3104.3,4.02887]
[1732027843317,3.22068,3105.0,3104.3,4.02887]
[1732027843564,3.22007,3105.6,3104.7,3.22085]
[1732027843565,3.22034,3105.3,3104.7,3.22085]
[1732027843896,3.0,3105.7,3104.6,3.22102]
[1732027844172,3.21958,3106.0,3105.2,3.22033]
[1732027844323,3.21986,3105.8,3105.2,3.864419]
[1732027844520,3.21962,3106.0,3105.4,3.22017]
[1732027844759,3.21962,3106.0,3105.2,3.22033]
[1732027844760,3.21962,3106.0,3105.2,3.22032]
[1732027844971,3.21979,3105.8,3105.3,3.77029]
[1732027845682,0.8057,3106.2,3105.3,0.55]
[1732027845884,3.21969,3105.9,3105.3,3.2202]
[1732027846082,3.2203,3105.3,3105.2,0.55]
[1732027846238,3.2204,3105.2,3104.5,3.22113]
[1732027846437,3.2204,3105.2,3104.4,0.7769]
[1732027846438,3.0,3105.6,3104.4,0.7769]
[1732027846641,3.22032,3105.3,3104.7,3.22085]
[1732027846846,3.2205,3105.2,3104.6,3.22101]
[1732027847068,3.22032,3105.3,3104.6,0.399791]
[1732027847267,3.22059,3105.1,3104.4,3.99812]
[1732027847453,3.22033,3105.3,3104.4,0.7769]
[1732027847887,3.22077,3104.9,3104.4,0.7769]
[1732027848036,0.622011,3105.4,3104.4,3.99807]
[1732027848240,0.01,3105.7,3104.4,0.7769]
[1732027848579,0.8307,3105.6,3104.4,0.7769]
[1732027848785,3.22027,3105.4,3104.0,4.03612]
[1732027848957,3.8307,3105.6,3104.1,3.22148]
[1732027848958,3.22099,3104.7,3104.1,3.22148]
[1732027849153,3.22099,3104.7,3103.8,3.2218]
[1732027849154,0.8307,3104.6,3103.8,3.2218]
[1732027849468,3.22135,3104.3,3103.8,3.54401]
[1732027849675,3.22114,3104.5,3103.9,3.22171]
[1732027849874,3.22114,3104.5,3103.8,3.32218]
[1732027850090,3.22135,3104.3,3103.7,3.22195]
[1732027850387,3.2214,3104.3,3103.6,3.22201]
[1732027850543,0.8307,3104.6,3103.5,3.22212]
[1732027850745,0.8307,3104.6,3103.4,0.8145]
[1732027850746,3.22167,3104.0,3103.4,0.8145]
[1732027850968,3.22146,3104.2,3103.4,4.03668]
[1732027851141,0.8307,3104.6,3103.5,3.22214]
[1732027851351,0.8307,3104.6,3103.0,0.1400097]
[1732027851352,3.22179,3103.9,3103.3,3.22237]
[1732027851651,3.22172,3104.0,3103.3,3.22229]
[1732027851852,3.22164,3104.1,3103.0,0.1400097]
[1732027852052,0.322164,3104.1,3103.1,3.0]
[1732027852292,0.8407,3104.6,3103.0,0.1400097]
[1732027852293,3.7573,3104.2,3103.0,0.1400097]
[1732027852505,3.22219,3103.5,3103.0,0.1400097]
[1732027852707,3.22225,3103.5,3103.0,0.1400097]
[1732027852994,3.22245,3103.3,3103.0,0.1400097]
[1732027853153,0.8247,3103.4,3103.0,0.1400097]
[1732027853601,3.22248,3103.2,3103.0,0.1400097]
[1732027853756,3.22258,3103.1,3103.0,0.1400097]
[1732027853957,3.22245,3103.3,3103.0,0.1400097]
[1732027854482,3.22258,3103.1,3103.0,0.1400097]
[1732027854791,3.22245,3103.3,3103.0,0.1400097]
[1732027854995,4.03018,3103.1,3103.0,0.1400097]
[1732027855691,6.22215,3103.6,3103.0,0.1400097]
[1732027855692,4.02977,3103.5,3103.0,0.1400097]
[1732027855896,4.02978,3103.5,3103.0,0.1400097]
[1732027856204,3.22258,3103.1,3103.0,0.1400097]
[1732027856562,3.22238,3103.3,3103.0,0.1400097]
[1732027856759,8.91,3104.4,3103.1,0.7582]
[1732027857062,3.22181,3103.9,3103.1,3.98071]
[1732027857640,3.22181,3103.9,3103.3,3.22237]
[1732027857947,4.00145,3104.2,3103.7,3.22195]
[1732027858065,4.00145,3104.2,3103.3,6.44463]
[1732027858066,3.22165,3104.0,3103.3,6.44463]
[1732027858262,3.22165,3104.0,3103.3,3.22229]
[1732027858484,3.22143,3104.3,3103.5,3.22216]
[1732027858690,3.22161,3104.1,3103.5,3.22216]
[1732027858961,3.9775,3104.7,3103.8,3.22182]
[1732027859182,3.22113,3104.5,3103.8,3.22182]
[1732027859360,3.22113,3104.5,3103.9,3.22168]
[1732027859556,3.97745,3104.7,3104.0,3.22158]
[1732027859762,3.22122,3104.5,3104.0,3.22164]
[1732027860058,3.22115,3104.5,3103.9,0.7527]
[1732027860301,3.2213,3104.4,3103.8,3.22179]
[1732027860549,3.87987833,3105.1,3104.3,3.22125]
[1732027860705,3.22071,3104.9,3104.3,3.22125]
[1732027860896,0.71005883,3104.9,3104.1,3.2215]
[1732027861100,3.22074,3104.9,3104.3,3.22133]
[1732027861301,0.7541,3105.2,3104.4,3.22115]
[1732027861302,3.2207,3105.0,3104.4,3.22115]
[1732027861513,3.22083,3104.8,3104.0,0.7843]
[1732027861811,3.22093,3104.7,3104.1,3.22153]
[1732027862125,3.22103,3104.6,3104.0,0.7843]
[1732027862329,3.22103,3104.6,3103.9,3.77166]
[1732027862330,3.2215,3104.2,3103.6,0.55]
[1732027862515,3.2215,3104.2,3103.5,3.99528]
[1732027862728,3.22163,3104.1,3103.3,3.22234]
[1732027863018,3.22181,3103.9,3103.2,3.22247]
[1732027863335,0.7889,3104.6,3103.3,3.22237]
[1732027863650,0.7889,3105.0,3104.1,0.8197]
[1732027863860,3.23081,3104.8,3103.5,0.8197]
[1732027864152,3.22094,3104.7,3104.1,3.22153]
[1732027864316,3.22105,3104.6,3104.0,3.22158]
[1732027864517,0.400959,3104.9,3103.6,0.55]
[1732027864844,3.0,3104.9,3103.9,0.55]
[1732027865015,3.0,3104.9,3104.3,3.22128]
[1732027865222,1.288416,3105.4,3104.3,3.22128]
[1732027865223,4.02144,3105.4,3104.7,3.22083]
[1732027865545,0.8012,3105.4,3104.0,0.8108]
[1732027865705,3.22087,3104.8,3104.0,4.03241]
[1732027865916,3.542957,3104.8,3104.0,4.03241]
[1732027866147,3.22087,3104.8,3104.0,4.03241]
[1732027866320,3.22103,3104.6,3104.0,4.03241]
[1732027866522,3.2204,3105.2,3104.0,0.8108]
[1732027866849,3.22093,3104.7,3104.0,0.8108]
[1732027867033,6.44237,3104.5,3104.0,0.8108]
[1732027867215,3.22123,3104.4,3104.0,0.8108]
[1732027867726,3.22123,3104.4,3103.8,3.22177]
[1732027867934,3.22106,3104.6,3104.0,3.22157]
[1732027868128,0.8161,3105.2,3103.8,0.55]
[1732027868327,0.8161,3105.2,3104.0,3.22157]
[1732027868546,3.22094,3104.7,3104.0,3.22157]
[1732027868744,0.8161,3105.2,3104.2,3.22142]
[1732027868745,3.22073,3104.9,3104.2,3.22142]
[1732027869058,3.22073,3104.9,3103.8,0.55]
[1732027869059,3.22082,3104.8,3104.3,3.543452]
[1732027869256,3.22082,3104.8,3103.8,0.55]
[1732027869257,3.2205,3105.1,3103.9,0.7787]
[1732027869474,3.22113,3104.5,3103.9,0.7787]
[1732027869618,3.22147,3104.2,3103.7,3.22192]
[1732027869820,3.22162,3104.1,3103.5,3.98735]
[1732027870260,3.22184,3103.9,3103.5,0.7652]
[1732027870446,3.22187,3103.8,3103.5,0.7652]
[1732027870988,3.22183,3103.9,3103.2,3.9803]
[1732027871125,3.22144,3104.2,3103.2,0.7579]
[1732027871324,3.22234,3103.4,3103.0,0.1400097]
[1732027871552,3.22248,3103.2,3103.0,0.1400097]
[1732027871752,3.2221,3103.6,3103.0,0.1400097]
[1732027872028,3.23139,3104.3,3103.5,3.22207]
[1732027872029,3.22142,3104.3,3103.5,3.22207]
[1732027872227,3.22142,3104.3,3103.5,0.322207]
[1732027872434,3.22135,3104.3,3103.7,3.2219]
[1732027872752,3.22191,3103.8,3103.3,3.22237]
[1732027872951,0.698253,3104.3,3103.3,3.22237]
[1732027873267,0.7614,3104.5,3103.3,3.22237]
[1732027873472,3.22168,3104.0,3103.4,3.22226]
[1732027873776,3.22135,3104.3,3103.8,3.22179]
[1732027873968,3.22135,3104.3,3103.7,3.22192]
[1732027874266,3.22135,3104.3,3103.1,0.7745]
[1732027874267,3.22206,3103.6,3103.1,0.7745]
[1732027874468,3.720389,3104.3,3102.4,0.8071]
[1732027874469,0.7876,3103.7,3102.4,0.8071]
[1732027874767,3.22208,3103.6,3103.0,3.3626297]
[1732027874937,3.22224,3103.5,3103.0,0.1400097]
[1732027875310,3.22165,3104.0,3103.0,0.1400097]
[1732027875311,6.44328,3104.0,3103.0,0.1400097]
[1732027875605,3.22193,3103.8,3103.2,3.22242]
[1732027875923,3.22245,3103.3,3103.0,0.1400097]
[1732027876273,3.22258,3103.1,3103.0,0.1400097]
[1732027876700,6.4449,3103.3,3103.0,0.1400097]
[1732027876901,3.22234,3103.4,3103.0,0.1400097]
[1732027877205,3.22258,3103.1,3103.0,0.1400097]
[1732027877407,4.01998,3103.1,3103.0,0.1400097]
[1732027877970,3.22258,3103.1,3103.0,0.1400097]
[1732027879037,3.22202,3103.7,3103.0,0.1400097]
[1732027879315,3.22164,3104.1,3103.5,3.2221]
[1732027879611,3.22106,3104.6,3103.4,0.7572]
[1732027879918,3.22108,3104.6,3103.9,3.22173]
[1732027880066,3.22129,3104.4,3103.6,0.7572]
[1732027880278,3.22104,3104.6,3103.7,0.55]
[1732027880472,3.22122,3104.5,3103.8,3.22179]
[1732027880686,1.220513,3105.2,3103.6,3.97922]
[1732027880913,3.22098,3104.7,3104.0,3.22164]
[1732027881071,3.22098,3104.7,3104.1,3.22152]
[1732027881625,3.22127,3104.4,3103.8,3.2218]
[1732027881789,3.22082,3104.8,3103.7,3.22196]
[1732027881991,0.8159,3105.2,3104.5,3.22105]
[1732027882300,0.8159,3105.2,3103.5,3.22213]
[1732027882301,0.797,3102.4,3102.2,1.97098032]
[1732027882505,0.8415,3101.3,3100.7,3.22498]
[1732027882676,3.2249,3100.9,3100.2,0.7806]
[1732027882905,0.8415,3101.3,3100.4,0.2069785]
[1732027883231,3.23445,3101.3,3100.2,0.7806]
[1732027883437,1.33819099,3101.1,3100.2,0.7806]
[1732027883734,1.33819099,3101.4,3100.8,3.22496]
[1732027884031,4.57192099,3102.0,3101.1,0.7563]
[1732027884235,1.33819099,3101.9,3101.1,0.7563]
[1732027884387,1.33819099,3102.1,3101.3,3.22444]
[1732027884587,1.33819099,3102.1,3101.1,3.98094]
[1732027884588,3.52343363,3102.0,3101.4,0.322444]
[1732027884789,5.23069648,3102.3,3101.1,3.98094]
[1732027884790,0.29970363,3101.9,3101.2,3.22448]
[1732027885035,1.33819099,3102.5,3101.7,0.7959]
[1732027885341,0.29956792,3102.4,3101.8,0.401995]
[1732027885533,0.29956792,3102.3,3101.9,0.55]
[1732027885735,3.22321,3102.5,3101.9,0.55]
[1732027885896,0.29954425,3102.4,3101.9,0.55]
[1732027886095,3.23299,3102.7,3101.9,0.7247895]
[1732027886297,0.01,3103.0,3102.2,0.55]
[1732027886533,0.29943529,3102.9,3102.3,0.55]
[1732027886740,4.03969,3103.4,3101.9,0.1747895]
[1732027886741,3.22229,3103.4,3102.5,4.52423]
[1732027887013,0.29939008,3103.3,3102.5,4.52423]
[1732027887212,0.29939008,3103.2,3102.7,0.55]
[1732027887463,1.33991901,3103.2,3102.7,0.55]
[1732027887607,4.88417886,3103.4,3102.7,0.55]
[1732027887608,1.33985301,3103.4,3102.7,0.55]
[1732027887808,1.33985301,3103.6,3103.3,0.7517]
[1732027888004,1.33985301,3103.8,3103.3,0.7517]
[1732027888208,2.68983803,3104.1,3103.3,0.7517]
[1732027888209,4.56158301,3104.0,3103.3,0.7517]
[1732027888418,3.22198,3103.7,3103.3,0.7517]
[1732027888622,4.56165301,3103.9,3103.3,0.7517]
[1732027888823,4.56165301,3103.9,3103.4,3.22225]
[1732027888824,0.29932405,3103.8,3103.4,3.22225]
[1732027889044,1.33985301,3104.0,3103.4,0.397395]
[1732027889274,1.33985301,3104.0,3103.4,0.55]
[1732027889418,1.33985301,3104.1,3103.4,0.55]
[1732027889613,1.33985301,3104.1,3103.5,3.22207]
[1732027889913,2.00987852,3104.3,3103.7,0.55]
[1732027889914,4.56119301,3104.3,3103.7,0.55]
[1732027890139,4.8843507,3104.2,3103.7,0.55]
[1732027890411,1.33985301,3104.3,3103.7,0.55]
[1732027890574,1.33985301,3104.3,3103.6,3.599237]
[1732027890718,1.33985301,3104.4,3103.8,3.22178]
[1732027891273,1.33985301,3104.4,3104.1,0.8139]
[1732027891422,1.33985301,3104.5,3104.1,0.8139]
[1732027891770,1.33985301,3104.6,3104.1,0.8139]
[1732027891975,1.66357482,3104.5,3104.1,0.8139]
[1732027892275,1.66413204,3104.4,3103.1,3.22255]
[1732027892560,3.22183,3103.9,3103.6,0.8027]
[1732027892714,3.00440461,3103.8,3103.6,0.8027]
[1732027892915,1.33985301,3103.9,3103.6,0.8027]
[1732027893466,1.34231179,3104.1,3103.9,0.55]
[1732027893677,1.34231179,3104.1,3103.7,0.55]
[1732027893678,0.01,3103.6,3102.4,0.6482299]
[1732027893822,0.7904,3104.0,3101.2,2.63421759]
[1732027893823,3.22317,3102.6,3101.9,0.8027]
[1732027894023,1.3426861,3102.4,3101.9,0.8027]
[1732027894231,3.00834341,3102.3,3101.9,0.8027]
[1732027894441,3.22309,3102.7,3101.9,1.215363]
[1732027894442,1.3426861,3102.7,3101.9,1.215363]
[1732027894631,1.3426861,3102.8,3102.5,3.22318]
[1732027894934,4.01955072,3103.6,3103.2,3.22248]
[1732027894935,1.3426861,3103.4,3103.2,3.22248]
[1732027895278,1.3426861,3103.7,3103.0,3.0]
[1732027895476,3.22218,3103.5,3103.0,3.322273]
[1732027895781,4.5646461,3103.7,3103.1,0.3322273]
[1732027896074,3.22245,3103.3,3102.7,0.7861]
[1732027896277,1.3426861,3103.4,3102.9,3.22276]
[1732027896577,1.3426861,3103.5,3102.7,0.7861]
[1732027896779,3.22289,3102.8,3102.7,0.7861]
[1732027897238,3.22287,3102.9,3102.7,0.7861]
[1732027897440,2.00987852,3103.1,3102.7,0.7861]
[1732027897441,1.3426861,3103.1,3102.7,0.7861]
[1732027897855,3.3579754,3103.5,3102.8,3.55]
[1732027897856,1.3426861,3103.3,3102.8,3.55]
[1732027898037,2.00987852,3103.5,3103.1,3.22255]
[1732027898038,1.3426861,3103.5,3103.1,3.22255]
[1732027898358,3.22242,3103.3,3102.9,0.43361]
[1732027898531,3.22242,3103.3,3102.8,3.22288]
[1732027898735,1.3426861,3103.4,3103.0,3.22266]
[1732027898947,3.22197,3103.7,3103.1,3.22258]
[1732027899158,0.01,3104.1,3102.9,0.55]
[1732027899371,3.22218,3103.5,3103.0,3.22267]
[1732027899573,3.22213,3103.6,3103.0,3.22267]
[1732027899776,3.22189,3103.8,3103.0,3.9623115]
[1732027899988,1.34289368,3103.6,3103.5,3.77211]
[1732027900136,3.3572342,3104.1,3102.9,4.77037332]
[1732027900137,1.34289368,3104.1,3103.7,3.22196]
[1732027900336,1.34289368,3104.3,3103.9,3.22166]
[1732027900656,1.34289368,3104.3,3103.0,4.01064733]
[1732027900657,0.7754,3103.0,3101.4,3.22435]
[1732027900979,1.34286588,3102.9,3102.5,0.7938]
[1732027901134,1.34286588,3103.0,3102.5,1.195514]
[1732027901463,1.34286588,3103.5,3103.0,0.01]
[1732027901678,1.34286588,3103.7,3103.1,3.545839]
[1732027901881,1.34286588,3103.8,3103.3,3.22227]
[1732027902198,1.34286588,3103.8,3103.3,3.544497]
[1732027902348,1.34286588,3103.8,3103.3,0.322227]
[1732027902552,1.34286588,3103.7,3103.3,0.322227]
[1732027902793,1.34286588,3103.8,3103.3,3.2223]
[1732027902966,1.34286588,3103.8,3103.2,3.22246]
[1732027903351,1.34286588,3103.8,3103.0,3.22266]
[1732027903552,3.22203,3103.7,3103.1,3.872266]
[1732027903790,1.34286588,3103.7,3103.3,3.2223]
[1732027903992,5.23604882,3103.9,3103.4,3.0]
[1732027903993,1.34286588,3103.9,3103.4,3.0]
[1732027904221,1.34286588,3103.9,3103.5,3.7781]
[1732027904374,1.34286588,3103.9,3103.5,0.7781]
[1732027904572,1.34286588,3103.9,3103.5,7.00023]
[1732027904786,1.34286588,3103.9,3103.6,3.922073]
[1732027904999,1.34286588,3104.1,3103.6,3.922073]
[1732027905197,1.34286588,3104.2,3103.7,3.22194]
[1732027905405,1.34286588,3104.3,3103.8,0.3921963]
[1732027905854,1.34286588,3104.4,3104.0,3.2216]
[1732027906256,1.34286588,3104.4,3103.9,3.22173]
[1732027906498,4.56419588,3104.4,3103.9,0.644358]
[1732027906662,1.34286588,3104.4,3103.8,0.55]
[1732027906870,2.68573176,3104.7,3103.5,0.7781]
[1732027906871,1.34286588,3104.5,3104.0,0.55]
[1732027907197,1.34286588,3104.6,3104.3,3.22132]
[1732027907417,2.68573176,3104.9,3104.2,3.22134]
[1732027907418,1.34286588,3104.7,3104.2,3.22134]
[1732027907556,1.34286588,3104.9,3104.6,3.22101]
[1732027907758,1.34286588,3104.9,3104.7,3.2209]
[1732027908014,1.34286588,3105.0,3104.7,3.2209]
[1732027908192,1.34286588,3105.0,3104.6,3.22101]
[1732027908494,1.34286588,3105.1,3104.8,0.7765]
[1732027908808,1.34286588,3105.1,3104.8,3.9973]
[1732027909104,1.34286588,3105.1,3104.9,3.22069]
[1732027909313,1.34286588,3105.1,3104.8,0.7765]
[1732027909314,1.34286588,3105.3,3105.0,3.22061]
[1732027909515,1.34286588,3105.5,3105.0,3.22061]
[1732027909657,3.21992,3105.7,3105.3,3.22022]
[1732027909658,1.34286588,3105.7,3105.3,3.22022]
[1732027909867,2.01429882,3105.8,3105.3,3.22022]
[1732027909868,1.34286588,3105.8,3105.3,3.22022]
[1732027910167,1.34286588,3105.8,3105.3,3.22028]
[1732027910388,3.21993,3105.7,3105.1,3.22043]
[1732027910574,4.56260588,3105.9,3105.2,3.22039]
[1732027910781,1.34286588,3105.9,3105.3,3.22023]
[1732027910963,4.56244588,3106.0,3105.3,3.22023]
[1732027911161,4.56244588,3106.0,3104.8,3.99728]
[1732027911162,2.00154035,3106.0,3104.8,0.7765]
[1732027911403,3.22012,3105.5,3104.9,3.0]
[1732027911613,0.322012,3105.4,3104.8,0.7765]
[1732027911899,1.34286588,3105.3,3104.4,0.8002]
[1732027912058,3.22095,3104.7,3104.4,0.8002]
[1732027912258,3.22073,3104.9,3104.0,4.02177]
[1732027912493,3.22082,3104.8,3104.2,3.22142]
[1732027912697,4.56353588,3105.0,3104.4,3.22116]
[1732027912938,3.22074,3104.9,3104.2,3.22142]
[1732027913070,3.22067,3105.0,3104.0,0.8002]
[1732027913275,3.22067,3105.0,3104.5,3.22112]
[1732027913475,3.22077,3104.9,3104.4,3.0]
[1732027913802,3.22084,3104.8,3104.3,3.0]
[1732027914009,4.56327588,3105.2,3104.4,3.22121]
[1732027914232,3.22041,3105.2,3104.7,3.22091]
[1732027914515,3.22054,3105.1,3104.5,3.22111]
[1732027914716,3.2205,3105.2,3104.5,3.77112]
[1732027914873,1.34286588,3105.4,3104.7,3.22087]
[1732027915081,2.01429882,3105.5,3105.0,3.22053]
[1732027915082,1.34286588,3105.5,3105.0,3.22053]
[1732027915379,5.37172588,3105.8,3105.0,3.7706]
[1732027915577,3.2201,3105.5,3105.0,0.55]
[1732027915819,3.22038,3105.3,3104.6,3.77095]
[1732027916031,3.22038,3105.3,3104.8,0.55]
[1732027916177,3.22044,3105.2,3104.8,0.55]
[1732027916384,1.95517733,3105.6,3104.4,4.0215]
[1732027916721,3.22057,3105.1,3104.6,3.55]
[1732027917075,1.34286588,3105.4,3104.6,0.55]
[1732027917281,3.22066,3105.0,3104.5,3.55]
[1732027917612,4.56305588,3105.4,3104.6,3.22098]
[1732027917811,3.22048,3105.2,3104.7,3.2209]
[1732027918025,3.2203,3105.3,3104.7,3.2209]
[1732027918324,3.22019,3105.4,3104.7,3.2209]
[1732027918528,3.22043,3105.2,3104.7,3.2209]
[1732027918819,4.56290588,3105.6,3104.8,3.22077]
[1732027918984,3.21997,3105.7,3105.0,3.22055]
[1732027919175,3.2201,3105.5,3105.0,3.22055]
[1732027919380,4.09387006,3105.7,3105.2,0.7804]
[1732027919620,3.21971,3105.9,3105.2,0.7804]
[1732027919928,3.21989,3105.7,3105.2,0.7804]
[1732027920296,0.01,3105.9,3105.2,0.7804]
[1732027920297,3.22969,3105.9,3105.2,0.7804]
[1732027920495,3.21969,3105.9,3105.3,3.22023]
[1732027920699,3.21969,3105.9,3105.2,0.7804]
[1732027920988,3.21952,3106.1,3105.3,3.22028]
[1732027921208,2.13406588,3106.2,3105.3,3.2203]
[1732027921209,1.19603647,3106.2,3105.3,3.2203]
[1732027921523,3.21977,3105.9,3105.3,4.17031]
[1732027921689,3.2195,3106.1,3105.3,3.77024]
[1732027921882,3.21964,3106.0,3105.3,6.99046]
[1732027922189,1.34286588,3106.3,3105.3,3.77022]
[1732027922394,3.22951,3106.1,3105.2,0.7804]
[1732027922616,3.21994,3105.7,3105.2,0.7804]
[1732027922822,0.01,3106.1,3104.5,0.63654038]
[1732027922823,3.22028,3105.4,3104.9,0.7798]
[1732027923035,3.22037,3105.3,3104.9,0.7798]
[1732027923183,3.22037,3105.3,3104.1,3.22152]
[1732027923184,3.22091,3104.8,3104.4,0.7798]
[1732027923386,3.22087,3104.8,3104.4,0.7798]
[1732027923578,3.22061,3105.0,3104.4,0.7798]
[1732027923778,3.22061,3105.0,3104.4,4.00103]
[1732027923979,3.22061,3105.0,3104.5,3.22109]
[1732027924232,3.864525,3105.2,3104.4,4.00103]
[1732027924233,3.22072,3104.9,3104.4,4.00103]
[1732027924440,3.22052,3105.1,3104.4,4.00103]
[1732027924741,3.22032,3105.3,3104.5,3.22113]
[1732027924937,0.01,3105.5,3104.8,3.22075]
[1732027925088,4.56265588,3105.8,3104.7,3.0]
[1732027925289,2.80689882,3105.9,3104.4,3.7798]
[1732027925290,0.01,3105.6,3104.8,0.7756]
[1732027925587,3.2205,3105.2,3104.8,0.7756]
[1732027925786,3.22031,3105.3,3104.8,3.99641]
[1732027925985,3.22043,3105.2,3104.8,0.7756]
[1732027926339,3.22023,3105.4,3104.8,0.7756]
[1732027926340,3.22036,3105.3,3104.8,0.7756]
[1732027926639,0.645059,3105.3,3104.6,0.55]
[1732027926786,3.22017,3105.5,3104.8,6.22075]
[1732027926985,3.2203,3105.3,3104.8,6.22075]
[1732027927437,3.2203,3105.3,3104.8,6.17075]
[1732027927601,3.22017,3105.5,3104.8,6.17075]
[1732027927804,3.22993,3105.7,3104.6,0.55]
[1732027927988,3.21993,3105.7,3105.2,3.2204]
[1732027928494,0.00571174,3105.8,3105.2,3.2204]
[1732027928495,0.29976546,3105.6,3105.2,3.2204]
[1732027928708,0.00571174,3105.8,3105.4,3.22014]
[1732027929036,0.00571174,3105.8,3105.6,3.21997]
[1732027929239,0.00571174,3105.8,3105.7,3.21988]
[1732027929440,0.00571174,3105.8,3105.7,6.76988]
[1732027929936,1.34286588,3106.9,3106.5,0.8299]
[1732027930091,3.21861,3107.0,3106.5,0.8299]
[1732027930299,3.21867,3106.9,3106.5,0.8299]
[1732027930510,4.04237,3106.9,3106.3,3.0]
[1732027930738,3.21847,3107.1,3106.4,3.21907]
[1732027930945,1.34286588,3107.2,3106.8,3.21867]
[1732027931102,4.57099588,3107.4,3106.6,4.04577]
[1732027931291,0.75658337,3107.3,3106.7,3.21878]
[1732027931486,0.29948378,3107.2,3107.0,3.21853]
[1732027931764,0.29948378,3107.2,3106.6,0.8269]
[1732027931765,5.32533588,3107.6,3106.9,3.21856]
[1732027932052,0.29946255,3107.5,3106.9,3.21859]
[1732027932213,4.71644347,3107.6,3106.8,0.55]
[1732027932542,0.7645,3107.6,3106.9,3.21862]
[1732027932850,3.21773,3107.8,3106.8,0.55]